[Event "Swedish-ch MK-Elit 2022"]
[Site "Uppsala"]
[Date "2022.07.02"]
[Round "1.1"]
[White "Trost, Edvin"]
[Black "Ernst, Thomas"]
[Result "0-1"]
[ECO "D02"]
[WhiteElo "2345"]
[BlackElo "2289"]
[Annotator "TA"]
[PlyCount "40"]
[EventDate "2022.07.01"]
[EventType "tourn"]
[EventCountry "SWE"]
[SourceTitle "playchess.com"]
[Source "ChessBase"]
[SourceQuality "1"]
[TimeControl "40/5400+30:1800+30"]

{[%evp 9,40,26,33,22,20,18,20,23,2,13,46,57,50,54,50,43,56,53,98,67,55,73,102,0,0,-980,-152,-1214,-1156,-1265,-1252,-1200,-1136]} 1. d4 {[%emt 0:00:43]} Nf6 {[%emt 0:00:09]} 2. Nf3 {[%emt 0:01:16]} g6 {[%emt 0:00:17]} 3. Nbd2 {[%emt 0:02:01]} d5 {[%emt 0:05:53]} 4. b4 {[%emt 0:00:38]} Bg7 {[%emt 0:01:41]} 5. e3 {[%emt 0:00:13]} a5 {[%emt 0:08:45]} 6. b5 {[%emt 0:00:07] D02: 1 d4 d5 2 Nf3 sidelines, including 2...Nf6 3 g3 and 2...Nf6 3 Bf4.} c5 {[%emt 0:00:35]} 7. bxc6 {[%emt 0:00:24]} Nxc6 $1 {[%emt 0:00:12] 7...Nxc6 scores better than 7...bxc6.} 8. Be2 {[%emt 0:00:45] The position is equal.} O-O {[%emt 0:01:21]} 9. O-O {[%emt 0:00:04]} Ne4 {[%emt 0:02:32]} 10. Nxe4 {[%emt 0:04:55]} dxe4 {[%emt 0:00:09]} 11. Nd2 {[%emt 0:00:17]} e5 {[%emt 0:05:05]} 12. c3 {[%emt 0:14:00] [#]} ({Much weaker is} 12. Nxe4 exd4 13. Rb1 Qe7 $17) 12... exd4 $146 {[%emt 0:05:55]} ({Predecessor:} 12... f5 13. a4 Be6 14. Ba3 Rf7 15. Rb1 Qh4 16. Nc4 exd4 17. cxd4 f4 18. d5 Rd7 {1-0 (42) Henderson de la Fuente,L (2491)-Wu,B (2123) Chess.com INT 2020}) 13. cxd4 {[%emt 0:01:16]} f5 {[%emt 0:01:58]} 14. Rb1 {[%emt 0:01:49]} Kh8 {[%emt 0:00:48]} 15. Nc4 {[%emt 0:02:27]} f4 {[%emt 0:07:08][%cal Of4f3]} 16. Nb6 {[%emt 0:05:08]} ({Better is} 16. Ba3 $16) 16... f3 $1 $11 {[%emt 0:00:13]} 17. Bc4 $2 {[%emt 0:10:14][%mdl 8192] [#]} (17. Nxa8 $2 {loses.} Bh3 $1 18. Bxf3 exf3 $17) (17. gxf3 $11 Bh3 18. f4) 17... fxg2 $2 {[%emt 0:09:40]} (17... Qh4 $1 $19 {[%cal Oh4g4] has better winning chances. ( -> ...Qg4!)} 18. Rb5 {[#]} (18. gxf3 exf3) 18... Qg4 $1) 18. Re1 $2 {[%emt 0:02:04] [#]} (18. Kxg2 $17 Qg5+ 19. Kh1) 18... Qh4 $1 $19 {[%emt 0:06:54][%csl Gf8][%cal Rh4f2] Black is clearly winning.} 19. Rb2 {[%emt 0:05:13]} (19. Re2 Ne5) 19... Ne5 {[%emt 0:01:18]} 20. Nxc8 {[%emt 0:00:22]} Raxc8 {[%emt 0:10:02] Weighted Error Value: White=0.82/Black=0.62} 0-1

[Event "Swedish-ch MK-Elit 2022"]
[Site "Uppsala"]
[Date "2022.07.02"]
[Round "1.2"]
[White "Engqvist, Thomas"]
[Black "Von Bahr, Oskar"]
[Result "1/2-1/2"]
[ECO "A05"]
[WhiteElo "2330"]
[BlackElo "2386"]
[Annotator "TA"]
[PlyCount "82"]
[EventDate "2022.07.01"]
[EventType "tourn"]
[EventCountry "SWE"]
[SourceTitle "playchess.com"]
[Source "ChessBase"]
[SourceQuality "1"]
[TimeControl "40/5400+30:1800+30"]

{[%evp 11,82,7,38,4,12,12,1,9,14,4,2,0,20,14,10,0,0,0,0,0,0,0,0,0,0,0,0,-25,0,0,0,-13,-7,-3,-5,-6,-6,-19,0,0,0,0,0,0,0,0,0,-13,-10,-13,-14,-14,-12,-13,-13,-13,-14,-14,-15,-8,0,0,0,0,8,8,8,0,0,0,29,0,0]} 1. Nf3 {[%emt 0:00:04]} Nf6 {[%emt 0:00:43]} 2. b3 {[%emt 0:00:20]} g6 {[%emt 0:00:53]} 3. Bb2 {[%emt 0:00:08]} Bg7 {[%emt 0:00:05]} 4. g3 {[%emt 0:00:25]} O-O {[%emt 0:04:38]} 5. Bg2 {[%emt 0:00:15]} c5 {[%emt 0:01:14]} 6. c4 {[%emt 0:00:55]} d6 {[%emt 0:01:05]} 7. O-O {[%emt 0:01:21] A05: Réti Opening: 1 Nf3 Nf6.} e5 {[%emt 0:01:18]} 8. e3 {[%emt 0:02:25]} Nc6 {[%emt 0:02:02]} 9. d3 {[%emt 0:05:45]} h6 {[%emt 0:05:36]} 10. Nc3 {[%emt 0:13:54]} Be6 {[%emt 0:02:57]} 11. d4 {[%emt 0:03:55]} exd4 {[%emt 0:02:27]} 12. exd4 {[%emt 0:00:47] [#] Black must now prevent d5.} d5 {[%emt 0:05:12]} 13. cxd5 {[%emt 0:09:03]} (13. Na4 {seems wilder.} cxd4 14. Nxd4 Nxd4 15. Qxd4 dxc4 16. Nc5) 13... Nxd5 {[%emt 0:00:58]} 14. Na4 {[%emt 0:00:45]} cxd4 {[%emt 0:06:57]} 15. Nxd4 {[%emt 0:00:16]} Nxd4 {[%emt 0:02:26]} 16. Bxd4 {[%emt 0:00:05]} b6 $1 {[%emt 0:10:00]} 17. Rc1 {[%emt 0:14:15]} Rb8 {[%emt 0:09:26]} 18. Bxg7 {[%emt 0:11:57]} Kxg7 {[%emt 0:00:09] [#]} 19. Qd4+ $146 {[%emt 0:00:47]} ({Predecessor:} 19. Qd2 Nf6 20. Qb2 Rc8 21. Rxc8 Bxc8 22. Nc3 Kh7 23. Nb5 a6 24. Na7 Qd6 25. Qe2 {1-0 (49) Almasi,Z (2682)-Jacobs,F (2229) Stockholm 2016}) 19... Nf6 {[%emt 0:02:46]} 20. Qe5 {[%emt 0:06:20]} Rc8 {[%emt 0:04:38]} 21. Rxc8 {[%emt 0:09:52]} Qxc8 {[%emt 0:01:19]} 22. Nc3 {[%emt 0:03:17][%cal Ba4c3,Bc3b5,Bb5d4][%mdl 32]} Qb8 {[%emt 0:01:42]} 23. Qxb8 {[%emt 0:00:28]} Rxb8 {[%emt 0:00:05]} 24. Nb5 {[%emt 0:00:50]} a5 {[%emt 0:06:38]} 25. Nd4 {[%emt 0:00:23]} Bd7 {[%emt 0:03:45]} 26. Rc1 {[%emt 0:00:26]} Rc8 {[%emt 0:00:30]} 27. Rxc8 {[%emt 0:01:03]} Bxc8 $11 {[%emt 0:00:06][%mdl 4096] Endgame KBN-KBN} 28. a3 {[%emt 0:02:40]} Kf8 {[%emt 0:01:42]} 29. Kf1 {[%emt 0:03:31]} Ke7 {[%emt 0:01:11]} 30. Bf3 {[%emt 0:03:00]} Kd6 {[%emt 0:02:59]} 31. Ke2 {[%emt 0:01:00]} Kc5 {[%emt 0:02:11]} 32. Kd3 {[%emt 0:00:51]} Ba6+ {[%emt 0:01:51]} 33. Kc3 {[%emt 0:01:24]} Nd5+ {[%emt 0:00:35]} 34. Bxd5 {[%emt 0:00:08]} Kxd5 {[%emt 0:00:04] KB-KN} 35. f3 {[%emt 0:01:39]} Bf1 {[%emt 0:02:55]} 36. Nc2 {[%emt 0:00:51] [#] Threatens to win with Ne3+.} Be2 {[%emt 0:01:16]} 37. Ne3+ {[%emt 0:00:14]} Ke5 {[%emt 0:04:40]} 38. Nc4+ {[%emt 0:01:15]} Kf5 {[%emt 0:00:14]} 39. Ne3+ {[%emt 0:00:33]} Ke5 {[%emt 0:00:46]} 40. Nc4+ {[%emt 0:00:05]} Kf5 {[%emt 0:00:07]} 41. Ne3+ {[%emt 0:28:42]} Ke5 {[%emt 0:01:21] An uneventful encounter.  Weighted Error Value: White=0.04 (flawless) /Black=0.03 (flawless)} 1/2-1/2

[Event "Swedish-ch MK-Elit 2022"]
[Site "Uppsala"]
[Date "2022.07.02"]
[Round "1.3"]
[White "Thorn, Eric"]
[Black "Furhoff, Johan"]
[Result "1-0"]
[ECO "C99"]
[WhiteElo "2366"]
[BlackElo "2348"]
[Annotator "TA"]
[PlyCount "69"]
[EventDate "2022.07.01"]
[EventType "tourn"]
[EventCountry "SWE"]
[SourceTitle "playchess.com"]
[Source "ChessBase"]
[SourceQuality "1"]
[TimeControl "40/5400+30:1800+30"]

{[%evp 28,69,81,64,103,72,133,123,122,107,97,91,104,49,77,82,82,80,312,297,308,301,271,279,407,412,400,238,554,553,553,553,546,544,544,537,520,480,5185,2177,29974,29975,6095,5173]} 1. e4 {[%emt 2:58:00]} e5 {[%emt 0:00:06]} 2. Nf3 {[%emt 0:00:06]} Nc6 {[%emt 0:00:05]} 3. Bb5 {[%emt 0:00:11][%cal Bf1b5,Bb5a4,Ba4b3,Bb3c2,Bc2d3][%mdl 32]} a6 {[%emt 0:00:09]} 4. Ba4 {[%emt 0:00:08]} d6 {[%emt 0:00:07]} 5. O-O {[%emt 0:03:02]} Nf6 {[%emt 0:00:30]} 6. c3 {[%emt 0:11:56]} b5 {[%emt 0:06:22]} 7. Bb3 {[%emt 0:01:51]} Be7 {[%emt 0:02:40]} 8. Re1 {[%emt 0:02:17]} O-O {[%emt 0:00:32]} 9. h3 Na5 {[%emt 0:07:38]} 10. Bc2 c5 {[%emt 0:00:38]} 11. d4 Qc7 {[%emt 0:04:18]} 12. Nbd2 cxd4 {[%emt 0:04:31]} 13. cxd4 {[%emt 0:00:15]} Bb7 {[%emt 0:01:23]} 14. d5 {[%emt 0:02:46]} Rac8 {[%emt 0:02:04]} 15. Bd3 {[%emt 0:03:29]} Ne8 {[%emt 0:12:09][%cal Of7f5] C99: Closed Ruy Lopez: Chigorin Defence: 11 d4 Qc7 12 Nbd2 cxd4.} 16. a4 {[%emt 0:20:55] [#]} Nc4 $146 {[%emt 0:01:29]} (16... b4 $142) ({Predecessor:} 16... b4 17. Nf1 f5 18. exf5 Nc4 19. Ne3 Nxe3 20. fxe3 Qc5 21. Kh1 Qxd5 22. e4 Qf7 23. a5 {½-½ (68) Deforel,J (2192)-Hjorth,J (1970) ICCF email 2016}) 17. axb5 $16 {[%emt 0:00:00]} axb5 {[%emt 0:10:30][%cal Of7f5] White is better.} 18. b3 {[%emt 0:04:20]} Nxd2 {[%emt 0:00:09]} 19. Bxd2 {[%emt 0:00:00]} ({Stronger than} 19. Nxd2 Qc3 20. Ra7 Qxd3 $17) 19... f5 {[%emt 0:18:23]} 20. Qb1 {[%emt 0:06:55] White is more active.} (20. Bxb5 $16 {Threatens to win with Rc1.} Nf6 21. exf5) 20... fxe4 {[%emt 0:00:00]} 21. Bxe4 {[%emt 0:00:00]} Nf6 {[%emt 0:00:00] [#]} 22. Bf5 {[%emt 0:00:00]} Ra8 $2 {[%emt 0:03:27] This move loses the game for Black.} (22... Bxd5 $16 {might work better.} 23. Rc1 Qb8) 23. Rxa8 $18 {[%emt 0:00:00]} Bxa8 {[%emt 0:00:09]} 24. Be6+ {[%emt 0:00:00]} Kh8 {[%emt 0:00:30]} 25. Rc1 {[%emt 0:00:00]} Qd8 {[%emt 0:08:32] [#]} (25... Qa7 $142 26. Ng5 g6) 26. Ng5 $1 {[%emt 0:00:00]} Qe8 {[%emt 0:00:30]} 27. Bb4 {[%emt 0:00:00]} (27. Qd3 $142) 27... g6 $2 {[%emt 0:05:00]} (27... h6 {is a better chance.}) 28. Rc8 {[%emt 0:00:00]} Qxc8 {[%emt 0:00:24]} 29. Bxc8 {[%emt 0:00:00]} Rxc8 {[%emt 0:00:23] [#]} 30. Bxd6 $1 {[%emt 0:00:00][%mdl 512]} Bxd6 {[%emt 0:01:53]} 31. Nf7+ {[%emt 0:00:00]} Kg7 {[%emt 0:03:27]} 32. Nxd6 {[%emt 0:00:00]} Rc5 {[%emt 0:01:13]} (32... Rd8 $142 33. Nxb5 Bxd5) 33. Qa1 {[%emt 0:00:00][%csl LRa8,LRe5] Qa7+ would kill now.} Rxd5 {[%emt 0:01:01]} 34. Qa7+ {[%emt 0:00:00]} Kh6 {[%emt 0:00:22]} 35. Nf7+ {[%emt 0:00:00] Weighted Error Value: White=0.16 (very precise) /Black=1.28} 1-0

[Event "Swedish-ch MK-Elit 2022"]
[Site "Uppsala"]
[Date "2022.07.02"]
[Round "1.4"]
[White "Wiedenkeller, Michael"]
[Black "Andersson, Tommy"]
[Result "1/2-1/2"]
[ECO "D08"]
[WhiteElo "2437"]
[BlackElo "2384"]
[Annotator "TA"]
[PlyCount "34"]
[EventDate "2022.07.01"]
[EventType "tourn"]
[EventCountry "SWE"]
[SourceTitle "playchess.com"]
[Source "ChessBase"]
[SourceQuality "1"]
[TimeControl "40/5400+30:1800+30"]

{[%evp 14,34,13,18,22,11,31,5,3,0,0,-15,0,0,0,0,0,0,0,0,0,0,0]} 1. d4 {[%emt 0:00:36]} d5 {[%emt 0:00:17][%cal Bd7d5,Bd5d4][%mdl 32]} 2. c4 {[%emt 0:00:14]} e5 {[%emt 0:01:12]} 3. dxe5 {[%emt 0:03:10]} d4 {[%emt 0:00:08]} 4. a3 {[%emt 0:01:22]} Nc6 {[%emt 0:00:21]} 5. e3 {[%emt 0:01:49]} Be6 {[%emt 0:09:34]} 6. Nf3 {[%emt 0:13:23]} dxe3 {[%emt 0:00:29]} 7. Qxd8+ {[%emt 0:00:14]} Rxd8 {[%emt 0:00:08]} 8. Bxe3 {[%emt 0:00:14]} Nh6 {[%emt 0:00:17] D08: Albin Counter Gambit.} 9. Nc3 {[%emt 0:10:01]} Nf5 {[%emt 0:00:23]} 10. Bg5 {[%emt 0:09:10]} Be7 {[%emt 0:02:43] The position is equal.} 11. Bxe7 {[%emt 0:12:35]} Kxe7 {[%emt 0:06:06]} 12. Be2 {[%emt 0:04:21]} Nfd4 {[%emt 0:02:25]} (12... h6 {looks sharper.} 13. O-O g5 14. Rfd1 g4) 13. Nxd4 {[%emt 0:01:19]} Rxd4 {[%emt 0:00:56] [#]} 14. Nb5 $146 {[%emt 0:06:49]} ({Predecessor:} 14. b3 Nxe5 15. O-O g5 16. Rfe1 f6 17. Bf1 Rhd8 18. Re3 c6 19. Rae1 Bf5 20. h3 Kf7 21. c5 R8d7 22. f3 Nd3 23. Bxd3 Rxd3 24. Kf2 {1-0 (65) Tregubov,P (2606)-Bjerke,S (2193) Bern 2014}) 14... Re4 {[%emt 0:09:12][%cal Oe4e2] Hoping for ...Rxe2+!} 15. Nc3 {[%emt 0:00:16]} Rd4 {[%emt 0:00:57]} 16. Nb5 {[%emt 0:01:25]} Re4 {[%emt 0:03:26][%cal Oe4e2] And now ...Rxe2+! would win.} 17. Nc3 {[%emt 0:01:15]} Rd4 {[%emt 0:00:28] Not much happened in this game.  Weighted Error Value: White=0.05 (flawless) /Black=0.02 (flawless)} 1/2-1/2

[Event "Swedish-ch MK-Elit 2022"]
[Site "Uppsala"]
[Date "2022.07.02"]
[Round "1.5"]
[White "Johansson, Jan"]
[Black "Cederstam, Carl"]
[Result "0-1"]
[ECO "D37"]
[WhiteElo "2306"]
[BlackElo "2332"]
[Annotator "TA"]
[PlyCount "83"]
[EventDate "2022.07.01"]
[EventType "tourn"]
[EventCountry "SWE"]
[SourceTitle "playchess.com"]
[Source "ChessBase"]
[SourceQuality "1"]
[TimeControl "40/5400+30:1800+30"]

{[%evp 11,83,0,0,0,0,0,0,0,18,20,24,18,10,8,13,0,7,0,0,0,3,8,11,9,8,4,25,24,19,0,0,0,0,0,0,0,19,-31,-22,-38,-29,-47,-11,-175,-170,-206,-131,-280,-198,-200,-201,-329,-245,-247,-165,-444,-435,-513,-477,-489,-510,-515,-489,-496,0,-142,0,-495,-495,-898,-861,-843,-851,-1586]} 1. d4 {[%emt 0:00:03]} d5 {[%emt 0:00:15]} 2. Nf3 {[%emt 0:00:10]} e6 {[%emt 0:00:14]} 3. c4 {[%emt 0:00:29]} a6 {[%emt 0:00:20]} 4. e3 {[%emt 0:08:26]} Nf6 {[%emt 0:00:34]} 5. Nc3 {[%emt 0:01:13]} Nbd7 {[%emt 0:02:08]} 6. cxd5 {[%emt 0:13:55]} exd5 {[%emt 0:00:10]} 7. Bd3 {[%emt 0:04:55] D37: Queen's Gambit Declined: 5 Bf4.} Bd6 {[%emt 0:01:49]} 8. O-O {[%emt 0:03:41]} O-O {[%emt 0:08:01]} 9. Bd2 {[%emt 0:00:36] [#] The position is equal.} b6 $146 {[%emt 0:03:31]} ({Predecessor:} 9... Re8 10. Rc1 Nb6 11. Qc2 Bg4 12. Ne1 h6 13. h3 Bd7 14. a4 Bc6 15. Nf3 Ne4 {½-½ (43) Bonfim,H (1941)-Machado,E (1787) Vitoria 2014}) 10. e4 {[%emt 0:09:24]} dxe4 {[%emt 0:00:37]} 11. Nxe4 {[%emt 0:00:05]} Be7 {[%emt 0:03:29]} 12. Re1 {[%emt 0:07:24]} Bb7 {[%emt 0:03:17]} 13. Ng3 {[%emt 0:08:19]} Re8 {[%emt 0:02:00]} 14. Bc4 {[%emt 0:02:26]} b5 {[%emt 0:07:36]} 15. Qb3 {[%emt 0:10:01]} bxc4 {[%emt 0:11:04]} 16. Qxb7 {[%emt 0:02:29]} Qb8 {[%emt 0:07:45]} 17. Qc6 {[%emt 0:05:02]} Qb5 {[%emt 0:17:36] Against Nf5} 18. Qxc7 {[%emt 0:04:35]} Rac8 {[%emt 0:01:42]} 19. Qa5 {[%emt 0:01:04]} Qxb2 {[%emt 0:00:42]} 20. Nf5 {[%emt 0:11:02]} Bf8 {[%emt 0:11:01] And now ...c3 would win.} 21. Reb1 {[%emt 0:00:31]} Qc2 {[%emt 0:02:27]} 22. Ne3 {[%emt 0:01:33]} Qd3 {[%emt 0:00:08]} 23. Rd1 {[%emt 0:01:17]} Ne4 {[%emt 0:05:54]} (23... c3 $5 {[%cal Rc3d2]} 24. Be1 Qe2 $11) 24. Be1 {[%emt 0:00:08]} (24. Qxa6 $11 Ndf6 25. Be1) 24... Qa3 $15 {[%emt 0:00:55]} 25. Qf5 {[%emt 0:00:43]} Ndf6 {[%emt 0:01:10] Hoping for ...c3.} 26. Ne5 {[%emt 0:00:40]} c3 {[%emt 0:02:23] [#] aiming for ...c2.} (26... Qa4 $5 {[%cal Rc4c3]} 27. Nd5 Qb5 28. Nxf6+ Nxf6 $11) 27. Rdc1 {[%emt 0:00:33]} (27. N5c4 $11 {and White has nothing to worry.} Qe7 28. Rac1) 27... Qa4 $36 {[%emt 0:00:55][%mdl 2048] Black has strong initiative.} 28. Nc2 {[%emt 0:00:29]} Red8 {[%emt 0:01:58]} 29. g4 {[%emt 0:01:22]} (29. Qh3 $17 {was called for.}) 29... Nd6 {[%emt 0:01:45]} 30. Qf3 {[%emt 0:00:12]} Nfe4 {[%emt 0:01:14] White must now prevent ...f6.} 31. Qf4 {[%emt 0:00:39]} ({Reject} 31. Nxf7 Nd2 32. Bxd2 cxd2 33. Nxd8 dxc1=Q+ 34. Rxc1 Rxd8 $19) (31. Qd3 {keeps fighting.}) 31... Be7 {[%emt 0:00:25] ...Bg5 is the strong threat.} 32. Nf3 {[%emt 0:00:34] Against Bg5} Rb8 {[%emt 0:00:34] Strongly threatening ...Rb2.} 33. Ne3 $2 {[%emt 0:00:20] [#]} (33. h4) 33... g5 $1 {[%emt 0:01:28]} 34. Qe5 {[%emt 0:00:27]} Bf6 {[%emt 0:00:36]} 35. Qd5 {[%emt 0:00:15]} Rb5 {[%emt 0:00:25]} 36. Qc6 {[%emt 0:00:15]} Rc8 {[%emt 0:00:15]} 37. Qd7 {[%emt 0:00:13]} Rd8 $2 {[%emt 0:01:12]} (37... Qa5 $19 {is more deadly.} 38. Ne5 Bxe5 39. dxe5 Rb7 40. Qxd6 Nxd6 41. exd6 Qe5) 38. Qc6 $17 {[%emt 0:00:08]} Rc8 $2 {[%emt 0:00:35][%mdl 8192] Black is much more active.} (38... h6 $17 39. Nd5 (39. Bxc3 $2 Rc8 $19) 39... Bxd4 40. Nxd4 Qxd4 41. Nxc3 Nxc3 42. Rxc3 Qxg4+ 43. Rg3 Qd4) 39. Qd7 $19 {[%emt 0:00:05]} Qa5 {[%emt 0:00:48] Black is clearly winning.} 40. Rab1 {[%emt 0:03:07]} (40. Nd2 $142 cxd2 41. Rxc8+ Nxc8 42. Bxd2 Qxd2 43. Qe8+ Kg7 44. Qxe4) 40... Rc7 {[%emt 0:00:50]} 41. Rxb5 {[%emt 0:31:30]} axb5 {[%emt 0:30:04]} ({Weaker is} 41... Rxd7 42. Rxa5 Nb5 43. Rxa6 $18) 42. Nd5 {[%emt 0:00:00] Weighted Error Value: White=0.40/Black=0.38} 0-1

[Event "Swedish-ch MK-Elit 2022"]
[Site "Uppsala"]
[Date "2022.07.03"]
[Round "2.1"]
[White "Ernst, Thomas"]
[Black "Engqvist, Thomas"]
[Result "1/2-1/2"]
[ECO "B80"]
[WhiteElo "2289"]
[BlackElo "2330"]
[Annotator "TA"]
[PlyCount "76"]
[EventDate "2022.07.01"]
[EventType "tourn"]
[EventCountry "SWE"]
[SourceTitle "playchess.com"]
[Source "ChessBase"]
[SourceQuality "1"]
[TimeControl "40/5400+30:1800+30"]

{[%evp 22,76,43,52,60,8,36,36,39,0,0,0,6,0,12,0,22,0,25,22,22,22,23,26,22,0,6,0,0,0,0,-4,14,0,72,-8,-8,-8,-8,-8,-6,-6,0,0,0,0,0,-8,0,0,0,0,0,0,0,0,0]} 1. e4 {[%emt 0:00:04]} c5 {[%emt 0:00:06]} 2. Nf3 {[%emt 0:00:12]} e6 {[%emt 0:00:06]} 3. d4 {[%emt 0:00:29]} cxd4 {[%emt 0:00:06]} 4. Nxd4 {[%emt 0:00:06]} Nc6 {[%emt 0:00:06]} 5. Nc3 {[%emt 0:00:48]} d6 {[%emt 0:00:06]} 6. g3 {[%emt 0:03:21]} Nf6 {[%emt 0:00:18]} 7. Bg2 {[%emt 0:00:29]} Bd7 {[%emt 0:00:19]} 8. O-O {[%emt 0:09:37]} Be7 {[%emt 0:01:38]} 9. Ndb5 {[%emt 0:01:04]} Qb8 {[%emt 0:00:18]} 10. Bg5 {[%emt 0:01:21]} a6 {[%emt 0:03:16]} 11. Bxf6 {[%emt 0:00:14]} gxf6 {[%emt 0:02:44]} 12. Nd4 {[%emt 0:00:08]} Qa7 {[%emt 0:01:46] B80: Sicilian Scheveningen: 6 g3 and 6 Be3, including English Attack.} 13. Nb3 {[%emt 0:03:11]} ({White should try} 13. Nce2 $14) 13... Ne5 {[%emt 0:03:36]} 14. a4 {[%emt 0:00:49]} Rc8 {[%emt 0:01:16] White is slightly better.} 15. Nd2 {[%emt 0:02:11] [#]} Qd4 $146 {[%emt 0:12:11]} ({Predecessor:} 15... Qb6 16. Ra3 Rc5 17. Rb3 Qc7 18. Qe2 Qc8 19. f4 Nc4 20. Nxc4 Rxc4 21. Kh1 h5 {0-1 (49) Kizatbay,A (2135)-Lindberg,B (2401) Stockholm 2020}) 16. Qe2 {[%emt 0:00:23]} Nc4 {[%emt 0:02:48]} 17. Nxc4 {[%emt 0:01:16]} Qxc4 {[%emt 0:00:16]} 18. Qd2 {[%emt 0:02:53]} Qc5 {[%emt 0:13:57]} 19. Rfd1 {[%emt 0:05:50][%cal Oe4e5]} b5 {[%emt 0:07:53]} 20. axb5 {[%emt 0:03:47]} axb5 {[%emt 0:00:10]} 21. Rdc1 {[%emt 0:04:00]} O-O {[%emt 0:11:47]} 22. Nd1 {[%emt 0:04:31]} b4 {[%emt 0:03:09]} 23. c3 {[%emt 0:04:22]} bxc3 {[%emt 0:02:22]} 24. Nxc3 {[%emt 0:00:22][%cal Oc3d5] Black must now prevent Nd5!} Qb6 {[%emt 0:03:28]} 25. Ra2 {[%emt 0:01:53]} Bc6 {[%emt 0:02:08]} 26. Rca1 {[%emt 0:01:21]} Bb7 {[%emt 0:03:27]} 27. Qh6 {[%emt 0:15:21]} Ra8 {[%emt 0:10:04] [#]} (27... Rc4 $11) 28. Rxa8 {[%emt 0:01:11]} (28. Nd5 $1 $16 {[%cal Rd5e7]} Bxd5 29. exd5 Rxa2 30. Rxa2) 28... Rxa8 $11 {[%emt 0:00:08] The position is equal.} 29. Rxa8+ {[%emt 0:00:12]} Bxa8 {[%emt 0:00:03]} 30. e5 {[%emt 0:09:25]} Bxg2 {[%emt 0:04:03]} 31. exf6 {[%emt 0:00:21] [#]} Bxf6 {[%emt 0:02:34]} 32. Qxf6 {[%emt 0:00:14][%mdl 4096] Endgame aiming for Qg5+. KQB-KQN} Bb7 {[%emt 0:04:55]} 33. Qg5+ {[%emt 0:06:04]} Kf8 {[%emt 0:00:04]} 34. Nd1 {[%emt 0:01:00]} Qc6 {[%emt 0:04:40][%csl Gb7][%cal Rc6h1]} 35. Qd8+ {[%emt 0:00:27]} Kg7 {[%emt 0:00:03][%csl Gb7][%cal Rc6h1]} 36. Qg5+ {[%emt 0:00:10]} Kf8 {[%emt 0:00:11][%csl Gb7][%cal Rc6h1]} 37. Qd8+ {[%emt 0:00:08]} Kg7 {[%emt 0:00:03][%csl Gb7][%cal Rc6g2]} 38. Qg5+ {[%emt 0:00:08]} Kf8 {[%emt 0:00:06] Weighted Error Value: White=0.15 (very precise) /Black=0.13 (very precise)} 1/2-1/2